fUST/lending_fUST_20250702
["ID","MTS","AMOUNT","RATE_DAILY","PERIOD"]
[369051174,1751445075440,-151.0,0.0002,2]
[369051175,1751445075449,-151.0,0.0002,2]
[369051176,1751445075459,-460.0,0.0002,2]
[369051177,1751445075469,-460.0,0.0002,2]
[369051178,1751445075479,-460.0,0.0002,2]
[369051179,1751445075488,-476.11,0.0002,2]
[369051180,1751445075498,-485.39895,0.0002,2]
[369051181,1751445075508,-641.61,0.0002,2]
[369051182,1751445075518,-485.39895,0.0002,2]
[369051183,1751445075527,-151.0,0.0002,2]
[369051184,1751445075536,-1766.89,0.0002,2]
[369051185,1751445075546,-460.0,0.0002,2]
[369051186,1751445075556,-826.15,0.0002,2]
[369051187,1751445075565,-1047.3,0.0002,2]
[369051188,1751445075574,-1000.0,0.0002,2]
[369051189,1751445075583,-978.89,0.0002,2]
[369051190,1751445075593,-496.66,0.0002,2]
[369051191,1751445075603,-640.0,0.0002,2]
[369051192,1751445075612,-460.0,0.0002,2]
[369051193,1751445075621,-2133.99,0.0002,2]
[369051194,1751445075630,-1265.38,0.0002,2]
[369051195,1751445075643,-727.25,0.0002,2]
[369051196,1751445075652,-539.69,0.0002,2]
[369051197,1751445075661,-1897.91,0.0002,2]
[369051198,1751445075670,-300.0,0.0002,2]
[369051199,1751445075680,-577.38,0.0002,2]
[369051200,1751445075791,-563.23,0.0002,2]
[369051201,1751445075802,-2115.45,0.0002,2]
[369051202,1751445075812,-516.01,0.0002,2]
[369051203,1751445075821,-557.01,0.0002,2]
[369051204,1751445075831,-460.0,0.0002,2]
[369051205,1751445075840,-460.0,0.0002,2]
[369051206,1751445075849,-3803.15,0.0002,2]
[369051207,1751445075858,-5111.31,0.0002,2]
[369051208,1751445075867,-780.82,0.0002,2]
[369051209,1751445075877,-5072.13,0.0002,2]
[369051210,1751445075886,-829.34,0.0002,2]
[369051211,1751445075895,-460.0,0.0002,2]
[369051212,1751445075905,-1087.5,0.0002,2]
[369051213,1751445075915,-718.56,0.0002,2]
[369051214,1751445075924,-1714.12,0.0002,2]
[369051215,1751445075933,-1401.55,0.0002,2]
[369051216,1751445075943,-460.0,0.0002,2]
[369051217,1751445075952,-669.72,0.0002,2]
[369051218,1751445075961,-1605.73,0.0002,2]
[369051219,1751445075970,-461.84,0.0002,2]
[369051220,1751445075979,-890.25,0.0002,2]
[369051221,1751445075989,-3517.17,0.0002,2]
[369051222,1751445075999,-591.46600374,0.0002,2]
[369051223,1751445076010,-759.61,0.0002,2]
[369051224,1751445076019,-570.4,0.0002,2]
[369051225,1751445076029,-882.98,0.0002,2]
[369051226,1751445076038,-1815.57,0.0002,2]
[369051227,1751445076048,-1073.74,0.0002,2]
[369051228,1751445076058,-484.61,0.0002,2]
[369051229,1751445076067,-460.0,0.0002,2]
[369051230,1751445076076,-460.0,0.0002,2]
[369051231,1751445076086,-460.0,0.0002,2]
[369051232,1751445076095,-460.0,0.0002,2]
[369051233,1751445076106,-1129.77,0.0002,2]
[369051234,1751445076115,-460.0,0.0002,2]
[369051235,1751445076124,-854.14,0.0002,2]
[369051236,1751445076134,-1100.11,0.0002,2]
[369051237,1751445076143,-667.52,0.0002,2]
[369051238,1751445076152,-460.0,0.0002,2]
[369051239,1751445076162,-3038.86,0.0002,2]
[369051240,1751445076172,-477.02,0.0002,2]
[369051241,1751445076182,-1028.48,0.0002,2]
[369051242,1751445076192,-151.0,0.0002,2]
[369051243,1751445076201,-460.0,0.0002,2]
[369051244,1751445076211,-1809.02,0.0002,2]
[369051245,1751445076221,-764.79,0.0002,2]
[369051246,1751445076231,-637.32,0.0002,2]
[369051247,1751445076240,-460.0,0.0002,2]
[369051248,1751445076250,-549.97,0.0002,2]
[369051249,1751445076260,-3087.48,0.0002,2]
[369051250,1751445076270,-460.0,0.0002,2]
[369051251,1751445076280,-801.86,0.0002,2]
[369051252,1751445076291,-495.84,0.0002,2]
[369051253,1751445076302,-505.94,0.0002,2]
[369051254,1751445076312,-929.01,0.0002,2]
[369051255,1751445076321,-3667.71,0.0002,2]
[369051256,1751445076330,-460.0,0.0002,2]
[369051257,1751445076340,-765.47,0.0002,2]
[369051258,1751445076350,-1714.9,0.0002,2]
[369051259,1751445076360,-1363.74,0.0002,2]
[369051260,1751445076370,-460.0,0.0002,2]
[369051261,1751445076380,-2367.93,0.0002,2]
[369051262,1751445076392,-732.17,0.0002,2]
[369051263,1751445076402,-460.0,0.0002,2]
[369051264,1751445076411,-849.76,0.0002,2]
[369051265,1751445076421,-854.21,0.0002,2]
[369051266,1751445076431,-721.5,0.0002,2]
[369051267,1751445076441,-460.0,0.0002,2]
[369051268,1751445076451,-1041.46,0.0002,2]
[369051269,1751445076460,-7003.26,0.0002,2]
[369051270,1751445076470,-805.0,0.0002,2]
[369051271,1751445076479,-306.666669,0.0002,2]
[369051272,1751445076488,-460.0,0.0002,2]
[369051273,1751445076499,-306.666669,0.0002,2]
[369051274,1751445076510,-490.7,0.00020077,3]
[369051275,1751445076522,-5702.0,0.00020156,2]
[369051276,1751445076532,-492.063888,0.00020187,2]
[369051277,1751445076541,-177.5677436,0.00020219,2]
[369051278,1751445076551,-150.0,0.00020242,2]
[369051279,1751445076560,-151.0,0.00020273,2]
[369051280,1751445076569,-151.0,0.00020273,2]
[369051281,1751445076580,-262.228203,0.00020273,2]
[369051282,1751445076589,-262.228203,0.00020273,2]
[369051283,1751445076599,-498.25,0.00020273,2]
[369051284,1751445076610,-151.0,0.00020273,2]
[369051285,1751445076619,-460.0,0.00020273,2]
[369051286,1751445076629,-460.0,0.00020273,2]
[369051287,1751445076638,-152.737831,0.00020273,2]
[369051288,1751445076647,-460.0,0.00020273,2]
[369051289,1751445076656,-639.06,0.00020273,2]
[369051290,1751445076666,-460.0,0.00020273,2]
[369051291,1751445076675,-876.29,0.00020273,2]
[369051292,1751445076685,-642.52,0.00020273,2]
[369051293,1751445076694,-460.0,0.00020273,2]
[369051294,1751445076703,-614.95,0.00020273,2]
[369051295,1751445076712,-980.93,0.00020273,2]
[369051296,1751445076722,-751.48,0.00020273,2]
[369051297,1751445076731,-460.0,0.00020273,2]
[369051298,1751445076740,-469.98,0.00020273,2]
[369051299,1751445076750,-460.0,0.00020273,2]
[369051300,1751445076759,-460.0,0.00020273,2]
[369051301,1751445076768,-460.0,0.00020273,2]
[369051302,1751445076777,-460.0,0.00020273,2]
[369051303,1751445076786,-460.0,0.00020273,2]
[369051304,1751445076796,-460.0,0.00020273,2]
[369051305,1751445076805,-476.11,0.00020273,2]
[369051306,1751445076816,-641.61,0.00020273,2]
[369051307,1751445076825,-1766.89,0.00020273,2]
[369051308,1751445076835,-460.0,0.00020273,2]
[369051309,1751445076844,-826.15,0.00020273,2]
[369051310,1751445076853,-1047.3,0.00020273,2]
[369051311,1751445076863,-978.89,0.00020273,2]
[369051312,1751445076873,-496.66,0.00020273,2]
[369051313,1751445076882,-460.0,0.00020273,2]
[369051314,1751445076892,-2133.99,0.00020273,2]
[369051315,1751445076901,-1265.38,0.00020273,2]
[369051316,1751445076911,-727.25,0.00020273,2]
[369051317,1751445076920,-539.69,0.00020273,2]
[369051318,1751445076929,-1897.91,0.00020273,2]
[369051319,1751445076939,-577.38,0.00020273,2]
[369051320,1751445076948,-563.23,0.00020273,2]
[369051321,1751445076958,-2115.45,0.00020273,2]
[369051322,1751445076967,-516.01,0.00020273,2]
[369051323,1751445076977,-557.01,0.00020273,2]
[369051324,1751445076986,-460.0,0.00020273,2]
[369051325,1751445076995,-460.0,0.00020273,2]
[369051326,1751445077005,-3803.15,0.00020273,2]
[369051327,1751445077014,-5111.31,0.00020273,2]
[369051328,1751445077024,-780.82,0.00020273,2]
[369051329,1751445077033,-5072.13,0.00020273,2]
[369051330,1751445077043,-829.34,0.00020273,2]
[369051331,1751445077052,-460.0,0.00020273,2]
[369051332,1751445077062,-718.56,0.00020273,2]
[369051333,1751445077071,-1087.5,0.00020273,2]
[369051334,1751445077080,-1714.12,0.00020273,2]
[369051335,1751445077090,-1401.55,0.00020273,2]
[369051336,1751445077100,-395.01448288,0.00020273,2]
[369051337,1751445077110,-669.72,0.00020273,2]
[369051338,1751445077120,-1605.73,0.00020273,2]
[369051339,1751445077131,-461.84,0.00020273,2]
[369051340,1751445077140,-890.25,0.00020273,2]
[369051341,1751445077149,-3517.17,0.00020273,2]
[369051342,1751445077159,-759.61,0.00020273,2]
[369051343,1751445077169,-570.4,0.00020273,2]
[369051344,1751445077178,-882.98,0.00020273,2]
[369051345,1751445077188,-1815.57,0.00020273,2]
[369051346,1751445077198,-1073.74,0.00020273,2]
[369051347,1751445077208,-484.61,0.00020273,2]
[369051348,1751445077217,-460.0,0.00020273,2]
[369051349,1751445077227,-460.0,0.00020273,2]
[369051350,1751445077236,-460.0,0.00020273,2]
[369051351,1751445077246,-460.0,0.00020273,2]
[369051352,1751445077256,-1129.77,0.00020273,2]
[369051353,1751445077265,-478.6084764,0.00020273,2]
[369051354,1751445077275,-854.14,0.00020273,2]
[369051355,1751445077284,-1100.11,0.00020273,2]
[369051356,1751445077294,-667.52,0.00020273,2]
[369051357,1751445077303,-460.0,0.00020273,2]
[369051358,1751445077313,-3038.86,0.00020273,2]
[369051360,1751445077322,-69.04026866,0.00020273,2]
[369051361,1751445077912,-272.67577278,0.00016438,2]
[369051362,1751445078112,-187.32422722,0.00016438,2]
[369051363,1751445078122,-110.72273547,0.00016438,2]
[369051364,1751445078179,10000.0,0.00015577,2]
[369051365,1751445078376,-349.27726453,0.00016438,2]
[369051366,1751445078390,-567.23,0.00016438,2]
[369051367,1751445078400,-348.91476916,0.00016438,2]
[369051368,1751445078412,-111.08523084,0.00016438,2]
[369051369,1751445078422,-145.55731286,0.00016438,2]
[369051370,1751445080572,495.04922,0.00013699,2]
[369051371,1751445091270,200.0,0.00025498,120]
[369051372,1751445150793,200.0,0.00026146,120]
[369051373,1751445210730,200.0,0.00027048,120]
[369051374,1751445270708,200.0,0.0002733,120]
[369051375,1751445330747,200.0,0.00024876,120]
[369051376,1751445363449,24900.0,0.0001536,2]
[369051377,1751445391370,200.0,0.00025799,120]
[369051378,1751445399220,-1200.0,0.00016236,2]
[369051379,1751445399246,-300.0,0.00016236,2]
[369051380,1751445399268,-300.0,0.00016237,2]
[369051381,1751445399290,-300.0,0.00016237,2]
[369051382,1751445399312,-486.87360761,0.00016237,2]
[369051383,1751445399336,-500.0,0.00016237,2]
[369051384,1751445399359,-281.17143955,0.00016237,2]
[369051385,1751445399384,-367.17861321,0.00016237,2]
[369051386,1751445399405,-160.07662717,0.00016237,2]
[369051387,1751445399428,-2104.69971246,0.00016238,2]
[369051388,1751445450750,200.0,0.00025737,120]
[369051389,1751445510724,200.0,0.00025738,120]
[369051390,1751445571685,200.0,0.00025311,120]
[369051391,1751445579597,17512.7594484,0.00015385,2]
[369051392,1751445630758,200.0,0.00025399,120]
[369051393,1751445672198,395.897419,0.00015346,2]
[369051394,1751445690855,200.0,0.00025029,120]
[369051395,1751445750726,200.0,0.0002622,120]
[369051396,1751445810941,200.0,0.00026343,120]
[369051398,1751445870742,200.0,0.00024995,120]
[369051399,1751445872200,-179.94715862,0.00016181,2]
[369051400,1751445930615,-369.58305387,0.00016181,2]
[369051401,1751445930647,-317.52,0.00016228,3]
[369051402,1751445930684,-158.76,0.00016228,3]
[369051403,1751445930716,-476.3,0.00016228,3]
[369051404,1751445930747,-300.0,0.00016237,2]
[369051405,1751445930778,-300.0,0.00016237,2]
[369051406,1751445930810,-300.0,0.00016237,2]
[369051407,1751445930840,-1200.0,0.00016237,2]
[369051408,1751445930871,-465.80470977,0.00016237,2]
[369051409,1751445930970,200.0,0.00024578,120]
[369051410,1751445931147,-9539.10681118,0.00016238,2]
[369051411,1751445931167,-10000.0,0.00016238,2]
[369051412,1751445931193,-10000.0,0.00016238,2]
[369051413,1751445931208,-10000.0,0.00016238,2]
[369051414,1751445931257,-10000.0,0.00016238,2]
[369051415,1751445931365,-10000.0,0.00016238,2]
[369051416,1751445931541,-10000.0,0.00016238,2]
[369051417,1751445931672,-10000.0,0.00016238,2]
[369051418,1751445931881,-10000.0,0.00016238,2]
[369051419,1751445931983,-10000.0,0.00016238,2]
[369051420,1751445932107,-10000.0,0.00016238,2]
[369051421,1751445932216,-10000.0,0.00016238,2]
[369051422,1751445932329,-10000.0,0.00016238,2]
[369051423,1751445932507,-10000.0,0.00016238,2]
[369051424,1751445932768,-10000.0,0.00016238,2]
[369051425,1751445932910,-10000.0,0.00016238,2]
[369051426,1751445933027,-10000.0,0.00016238,2]
[369051427,1751445933156,-10000.0,0.00016238,2]
[369051428,1751445933272,-10000.0,0.00016238,2]
[369051429,1751445991000,200.0,0.00025812,120]
[369051430,1751446008609,2000.0,0.00025148,120]
[369051431,1751446028467,2000.0,0.0002739,120]
[369051432,1751446031134,-153.94371681,0.00016173,2]
[369051433,1751446031155,-451.46,0.00016228,3]
[369051434,1751446031176,-300.0,0.00016235,2]
[369051435,1751446031200,-500.0,0.00016236,2]
[369051436,1751446031221,-500.0,0.00016236,2]
[369051437,1751446031243,-500.0,0.00016236,2]
[369051438,1751446031264,-254.7172477,0.00016236,2]
[369051439,1751446031285,-500.0,0.00016236,2]
[369051440,1751446031306,-500.0,0.00016236,2]
[369051441,1751446031328,-500.0,0.00016236,2]
[369051442,1751446031349,-500.0,0.00016236,2]
[369051443,1751446031370,-500.0,0.00016236,2]
[369051444,1751446031393,-335.0,0.00016236,2]
[369051445,1751446031416,-353.22175733,0.00016236,2]
[369051446,1751446031439,-500.0,0.00016236,2]
[369051447,1751446031463,-500.0,0.00016236,2]
[369051448,1751446031484,-292.48977567,0.00016236,2]
[369051449,1751446031506,-500.0,0.00016236,2]
[369051450,1751446031528,-500.0,0.00016236,2]
[369051451,1751446031550,-500.0,0.00016236,2]
[369051452,1751446031570,-500.0,0.00016236,2]
[369051453,1751446031591,-312.8247973,0.00016236,2]
[369051454,1751446031612,-500.0,0.00016236,2]
[369051455,1751446031633,-500.0,0.00016236,2]
[369051456,1751446031654,-500.0,0.00016236,2]
[369051457,1751446031674,-500.0,0.00016236,2]
[369051458,1751446031697,-500.0,0.00016236,2]
[369051459,1751446031721,-500.0,0.00016236,2]
[369051460,1751446031742,-290.0,0.00016236,2]
[369051461,1751446031763,-500.0,0.00016236,2]
[369051462,1751446031786,-500.0,0.00016236,2]
[369051463,1751446031807,-500.0,0.00016236,2]
[369051464,1751446031828,-500.0,0.00016236,2]
[369051465,1751446031850,-500.0,0.00016236,2]
[369051466,1751446031872,-500.0,0.00016236,2]
[369051467,1751446031894,-500.0,0.00016236,2]
[369051468,1751446031915,-500.0,0.00016236,2]
[369051469,1751446031935,-525.0,0.00016236,2]
[369051470,1751446031958,-500.0,0.00016236,2]
[369051471,1751446031980,-500.0,0.00016236,2]
[369051472,1751446032002,-500.0,0.00016236,2]
[369051473,1751446032025,-500.0,0.00016236,2]
[369051474,1751446032048,-211.69620073,0.00016236,2]
[369051475,1751446040814,-288.30379927,0.00016236,2]
[369051476,1751446040845,-500.0,0.00016236,2]
[369051477,1751446040875,-380.3745099,0.00016236,2]
[369051478,1751446040906,-500.0,0.00016236,2]
[369051479,1751446040936,-500.0,0.00016236,2]
[369051480,1751446040967,-500.0,0.00016236,2]
[369051481,1751446040999,-500.0,0.00016236,2]
[369051482,1751446041029,-500.0,0.00016236,2]
[369051483,1751446041058,-195.0,0.00016236,2]
[369051484,1751446041087,-500.0,0.00016236,2]
[369051485,1751446041117,-500.0,0.00016236,2]
[369051486,1751446041264,-500.0,0.00016236,2]
[369051487,1751446041295,-500.0,0.00016236,2]
[369051488,1751446041325,-500.0,0.00016236,2]
[369051489,1751446041355,-500.0,0.00016236,2]
[369051490,1751446041385,-500.0,0.00016236,2]
[369051491,1751446041415,-500.0,0.00016236,2]
[369051492,1751446041445,-500.0,0.00016236,2]
[369051493,1751446041473,-504.32785186,0.00016237,2]
[369051494,1751446041501,-791.34429628,0.00016237,2]
[369051495,1751446041612,-408.65570372,0.00016237,2]
[369051496,1751446041871,-272.64338166,0.00016238,2]
[369051497,1751446041926,-408.65570372,0.00016238,2]
[369051498,1751446041951,-9182.68859256,0.00016238,2]
[369051499,1751446041964,-10000.0,0.00016238,2]
[369051500,1751446041988,-10000.0,0.00016238,2]
[369051501,1751446042025,-10000.0,0.00016238,2]
[369051502,1751446042054,-10000.0,0.00016238,2]
[369051503,1751446042068,-10000.0,0.00016238,2]
[369051504,1751446042082,-10000.0,0.00016238,2]
[369051505,1751446042118,-10000.0,0.00016238,2]
[369051506,1751446042344,-10000.0,0.00016238,2]
[369051507,1751446042403,-10000.0,0.00016238,2]
[369051508,1751446042543,-10000.0,0.00016238,2]
[369051509,1751446042676,-10000.0,0.00016238,2]
[369051510,1751446042816,-4590.29097209,0.00016238,2]
[369051511,1751446042843,-819.41805582,0.00016238,2]
[369051512,1751446042929,-500.0,0.00016273,2]
[369051513,1751446042960,-3722.21977087,0.00016273,2]
[369051514,1751446042989,-519.76312072,0.00016273,2]
[369051515,1751446043017,-16.03421682,0.00016273,2]
[369051516,1751446043092,-483.96578318,0.00016273,2]
[369051517,1751446043123,-500.0,0.00016273,2]
[369051518,1751446043151,-477.378389,0.00016273,2]
[369051519,1751446043180,-500.0,0.00016273,2]
[369051520,1751446043211,-2406.57405995,0.00016281,2]
[369051521,1751446051011,200.0,0.00025517,120]
[369051522,1751446051142,-207.4,0.00016381,2]
[369051523,1751446051164,-5000.0,0.00016381,2]
[369051524,1751446051185,-300.95,0.00016428,3]
[369051525,1751446051206,-150.48,0.00016428,3]
[369051526,1751446051226,-160.0,0.00016437,2]
[369051527,1751446051246,-1000.0,0.00016437,2]
[369051528,1751446051266,-1000.0,0.00016437,2]
[369051529,1751446051286,-1003.02584741,0.00016437,2]
[369051530,1751446051307,-460.0,0.00016438,2]
[369051531,1751446051327,-460.0,0.00016438,2]
[369051532,1751446051347,-460.0,0.00016438,2]
[369051533,1751446051367,-460.0,0.00016438,2]
[369051534,1751446051386,-460.0,0.00016438,2]
[369051535,1751446051408,-460.0,0.00016438,2]
[369051536,1751446051427,-460.0,0.00016438,2]
[369051537,1751446051447,-460.0,0.00016438,2]
[369051538,1751446051466,-490.49139861,0.00016438,2]
[369051539,1751446051486,-460.0,0.00016438,2]
[369051540,1751446051506,-460.0,0.00016438,2]
[369051541,1751446051526,-462.39828921,0.00016438,2]
[369051542,1751446051545,-460.0,0.00016438,2]
[369051543,1751446051565,-460.0,0.00016438,2]
[369051544,1751446051584,-460.83668196,0.00016438,2]
[369051545,1751446051604,-460.0,0.00016438,2]
[369051546,1751446051624,-460.0,0.00016438,2]
[369051547,1751446051643,-460.0,0.00016438,2]
[369051548,1751446051662,-460.0,0.00016438,2]
[369051549,1751446051682,-460.0,0.00016438,2]
[369051550,1751446051701,-460.0,0.00016438,2]
[369051551,1751446051726,-460.0,0.00016438,2]
[369051552,1751446051746,-577.90426875,0.00016438,2]
[369051553,1751446051767,-209.50142848,0.00016438,2]
[369051554,1751446051809,5000.0,0.000171,6]
[369051555,1751446067508,5000.0,0.000171,6]
[369051556,1751446075022,2232.0951021,0.00016138,2]
[369051557,1751446075045,10000.0,0.00016138,2]
[369051558,1751446075069,10000.0,0.00016138,2]
[369051559,1751446075094,10000.0,0.00016138,2]
[369051560,1751446075119,10000.0,0.00016138,2]
[369051561,1751446075143,10000.0,0.00016138,2]
[369051562,1751446075168,10000.0,0.00016138,2]
[369051563,1751446075191,10000.0,0.00016138,2]
[369051564,1751446075224,10000.0,0.00016138,2]
[369051565,1751446075249,10000.0,0.00016138,2]
[369051566,1751446075274,10000.0,0.00016138,2]
[369051567,1751446075299,10000.0,0.00016138,2]
[369051568,1751446075323,10000.0,0.00016138,2]
[369051569,1751446075346,10000.0,0.00016138,2]
[369051570,1751446075371,10000.0,0.00016138,2]
[369051571,1751446075397,10000.0,0.00016138,2]
[369051572,1751446075698,-274.86946546,0.00016138,2]
[369051573,1751446078988,-152.5173829,0.00016138,2]
[369051574,1751446081321,-228.24346594,0.00016138,2]
[369051575,1751446082724,5000.0,0.000161,2]
[369051576,1751446083362,10000.0,0.00015736,2]
[369051577,1751446085316,-152.5173829,0.00016137,2]
[369051578,1751446096690,-147.4826171,0.00016137,2]
[369051579,1751446099765,5000.0,0.000161,2]
[369051580,1751446100089,-7472.9396637,0.00016138,2]
[369051581,1751446100265,-10000.0,0.00016138,2]
[369051582,1751446100424,-10000.0,0.00016138,2]
[369051583,1751446100600,-10000.0,0.00016138,2]
[369051584,1751446101072,-10000.0,0.00016138,2]
[369051585,1751446101278,-1154.75697288,0.00016138,2]
[369051586,1751446101302,-7690.48605424,0.00016138,2]
[369051587,1751446110865,200.0,0.00024084,120]
[369051588,1751446126747,377.97595594,0.00016128,2]
[369051590,1751446165903,4247.42022034,0.000171,6]
[369051591,1751446170487,200.0,0.00025591,120]
[369051592,1751446174069,5000.0,0.000171,6]
[369051593,1751446189807,5000.0,0.000163,2]
[369051594,1751446205437,4622.02404406,0.000163,2]
[369051595,1751446205460,377.97595594,0.000163,2]
[369051596,1751446221355,5000.0,0.000163,2]
[369051598,1751446230661,200.0,0.0002421,120]
[369051610,1751446232034,-170.21715781,0.000163,2]
[369051611,1751446232045,-170.21715778,0.00016312,2]
[369051612,1751446232055,-170.21715778,0.00016325,2]
[369051613,1751446232065,-470.91136575,0.00016337,2]
[369051614,1751446232076,-28.21884752,0.00016337,2]
[369051615,1751446232086,-170.21715778,0.00016337,2]
[369051616,1751446232095,-2773.26161578,0.00016338,2]
[369051617,1751446232105,-2337.0,0.000164,2]
[369051618,1751446232114,-223.7,0.00016428,3]
[369051619,1751446232124,-671.15,0.00016428,3]
[369051620,1751446232133,-4042.11881115,0.00016428,2]
[369051622,1751446237015,4622.02404406,0.000163,2]
[369051623,1751446237039,377.97595594,0.000163,2]
[369051674,1751446238093,-957.88118885,0.00016428,2]
[369051676,1751446238103,-690.642,0.00016428,2]
[369051678,1751446238112,-207.4,0.00016428,2]
[369051680,1751446238121,-151.0,0.00016428,2]
[369051682,1751446238137,-315.0,0.00016436,2]
[369051684,1751446238146,-317.0246397,0.00016436,2]
[369051686,1751446238155,-500.0,0.00016436,2]
[369051688,1751446238164,-225.0,0.00016436,2]
[369051690,1751446238174,-500.0,0.00016436,2]
[369051692,1751446238183,-264.48605666,0.00016436,2]
[369051694,1751446238192,-355.0,0.00016436,2]
[369051696,1751446238201,-310.0,0.00016436,2]
[369051698,1751446238211,-300.0,0.00016436,2]
[369051700,1751446238220,-300.0,0.00016436,2]
[369051702,1751446238230,-1200.0,0.00016436,2]
[369051704,1751446238239,-33379.0106567,0.00016437,2]
[369051706,1751446238248,-500.0,0.00016437,2]
[369051708,1751446238258,-468.96275519,0.00016437,2]
[369051710,1751446238268,-270.79471508,0.00016437,2]
[369051711,1751446238280,-461.05741184,0.00016438,2]
[369051712,1751446238290,-470.82373371,0.00016438,2]
[369051713,1751446238299,-460.0,0.00016438,2]
[369051714,1751446238308,-460.0,0.00016438,2]
[369051715,1751446238318,-460.0,0.00016438,2]
[369051716,1751446238328,-460.0,0.00016438,2]
[369051718,1751446238339,-460.0,0.00016438,2]
[369051719,1751446238349,-460.0,0.00016438,2]
[369051721,1751446238359,-460.0,0.00016438,2]
[369051723,1751446238368,-447.03364947,0.00016438,2]
[369051725,1751446238377,-461.8544724,0.00016438,2]
[369051727,1751446238387,-460.0,0.00016438,2]
[369051729,1751446238396,-460.0,0.00016438,2]
[369051730,1751446238405,-291.20610717,0.00016438,2]
[369051731,1751446238415,-460.0,0.00016438,2]
[369051732,1751446238425,-460.0,0.00016438,2]
[369051733,1751446238434,-598.88579814,0.00016438,2]
[369051734,1751446238444,-460.0,0.00016438,2]
[369051735,1751446238455,-460.0,0.00016438,2]
[369051736,1751446238465,-460.0,0.00016438,2]
[369051737,1751446238475,-460.0,0.00016438,2]
[369051738,1751446238484,-460.0,0.00016438,2]
[369051739,1751446238494,-460.0,0.00016438,2]
[369051740,1751446238503,-460.7566296,0.00016438,2]
[369051741,1751446238512,-460.0,0.00016438,2]
[369051742,1751446238522,-460.0,0.00016438,2]
[369051743,1751446238531,-460.0,0.00016438,2]
[369051744,1751446238540,-460.0,0.00016438,2]
[369051745,1751446238550,-460.0,0.00016438,2]
[369051746,1751446238559,-460.0,0.00016438,2]
[369051747,1751446238569,-460.0,0.00016438,2]
[369051748,1751446238578,-506.54447998,0.00016438,2]
[369051749,1751446238588,-460.0,0.00016438,2]
[369051750,1751446238597,-460.0,0.00016438,2]
[369051751,1751446238608,-460.0,0.00016438,2]
[369051752,1751446238618,-460.0,0.00016438,2]
[369051753,1751446238627,-500.0,0.00016438,2]
[369051754,1751446238637,-460.0,0.00016438,2]
[369051755,1751446238646,-460.0,0.00016438,2]
[369051756,1751446238655,-460.0,0.00016438,2]
[369051757,1751446238665,-460.0,0.00016438,2]
[369051758,1751446238674,-460.0,0.00016438,2]
[369051759,1751446238683,-460.0,0.00016438,2]
[369051760,1751446238693,-460.0,0.00016438,2]
[369051761,1751446238702,-460.0,0.00016438,2]
[369051762,1751446238712,-460.0,0.00016438,2]
[369051763,1751446238721,-460.0,0.00016438,2]